fUST/lending_fUST_20240819
["ID","MTS","AMOUNT","RATE_DAILY","PERIOD"]
[335260166,1724051460593,-500.0,0.00016712,2]
[335260167,1724051460607,-500.0,0.00016712,2]
[335260168,1724051460622,-519.33993087,0.00016712,2]
[335260169,1724051460636,-500.0,0.00016712,2]
[335260170,1724051460650,-503.12527639,0.00016712,2]
[335260171,1724051460664,-500.0,0.00016712,2]
[335260172,1724051460678,-794.94,0.00016712,2]
[335260173,1724051460692,-500.0,0.00016712,2]
[335260174,1724051460706,-500.0,0.00016712,2]
[335260175,1724051460720,-500.0,0.00016712,2]
[335260176,1724051460734,-897.26,0.00016712,2]
[335260177,1724051460747,-500.0,0.00016712,2]
[335260178,1724051460761,-500.0,0.00016712,2]
[335260179,1724051460775,-500.0,0.00016712,2]
[335260180,1724051460789,-500.0,0.00016712,2]
[335260181,1724051460805,-500.0,0.00016712,2]
[335260182,1724051460820,-500.0,0.00016712,2]
[335260183,1724051460833,-500.0,0.00016712,2]
[335260184,1724051460848,-500.0,0.00016712,2]
[335260185,1724051460864,-500.0,0.00016712,2]
[335260186,1724051460879,-500.0,0.00016712,2]
[335260187,1724051460896,-500.0,0.00016712,2]
[335260188,1724051460912,-500.0,0.00016712,2]
[335260189,1724051460928,-500.0,0.00016712,2]
[335260190,1724051460944,-500.0,0.00016712,2]
[335260191,1724051460959,-500.0,0.00016712,2]
[335260192,1724051460975,-504.38388832,0.00016712,2]
[335260193,1724051460989,-500.0,0.00016712,2]
[335260194,1724051461003,-500.0,0.00016712,2]
[335260195,1724051461017,-500.0,0.00016712,2]
[335260196,1724051461032,-500.0,0.00016712,2]
[335260197,1724051461047,-500.0,0.00016712,2]
[335260198,1724051461060,-500.0,0.00016712,2]
[335260199,1724051461075,-500.0,0.00016712,2]
[335260200,1724051461089,-706.1,0.00016712,2]
[335260201,1724051461102,-641.05,0.00016712,2]
[335260202,1724051461116,-1070.46,0.00016712,2]
[335260203,1724051461130,-500.0,0.00016712,2]
[335260204,1724051461145,-503.57326137,0.00016712,2]
[335260205,1724051461159,-1032.7,0.00016712,2]
[335260206,1724051461173,-500.0,0.00016712,2]
[335260207,1724051461188,-500.0,0.00016712,2]
[335260208,1724051461202,-548.5,0.00016712,2]
[335260209,1724051461214,-541.79742213,0.00016712,2]
[335260210,1724051461223,-502.81763612,0.00016712,2]
[335260211,1724051461233,-502.21703998,0.00016712,2]
[335260212,1724051461379,-500.0,0.00016712,2]
[335260213,1724051461394,-500.0,0.00016712,2]
[335260214,1724051461410,-500.0,0.00016712,2]
[335260215,1724051461419,-500.0,0.00016712,2]
[335260216,1724051461428,-500.0,0.00016712,2]
[335260217,1724051461439,-500.0,0.00016712,2]
[335260218,1724051461450,-500.0,0.00016712,2]
[335260219,1724051461459,-500.0,0.00016712,2]
[335260220,1724051461469,-601.32141241,0.00016712,2]
[335260221,1724051461478,-500.0,0.00016712,2]
[335260222,1724051461487,-500.0,0.00016712,2]
[335260223,1724051461497,-500.0,0.00016712,2]
[335260224,1724051461507,-500.0,0.00016712,2]
[335260225,1724051461517,-573.65,0.00016712,2]
[335260226,1724051461526,-500.0,0.00016712,2]
[335260227,1724051461536,-500.0,0.00016712,2]
[335260228,1724051461545,-666.52,0.00016712,2]
[335260229,1724051461555,-500.0,0.00016712,2]
[335260230,1724051461567,-500.0,0.00016712,2]
[335260231,1724051461577,-500.0,0.00016712,2]
[335260232,1724051461586,-525.3,0.00016712,2]
[335260233,1724051461596,-678.81,0.00016712,2]
[335260234,1724051461606,-547.88,0.00016712,2]
[335260235,1724051461615,-500.0,0.00016712,2]
[335260236,1724051461624,-500.0,0.00016712,2]
[335260237,1724051461634,-500.0,0.00016712,2]
[335260238,1724051461643,-500.0,0.00016712,2]
[335260239,1724051461653,-500.0,0.00016712,2]
[335260240,1724051461662,-500.0,0.00016712,2]
[335260241,1724051461671,-202.12041607,0.00016712,2]
[335260242,1724051498243,166.4,5.479e-05,2]
[335260245,1724051947183,812.64750099,6.641e-05,2]
[335260308,1724052632113,-160.50522781,0.00012971,2]
[335260309,1724052632123,-154.79103211,0.00012971,2]
[335260310,1724052632133,-185.92956,0.00014247,2]
[335260311,1724052632142,-166.228402,0.00014793,2]
[335260312,1724052632152,-227.43331144,0.00015,2]
[335260313,1724052632162,-166.228402,0.0001505,2]
[335260314,1724052632172,-166.228402,0.00015307,2]
[335260315,1724052632181,-590.0785265,0.00015452,2]
[335260316,1724052632191,-166.228402,0.00015564,2]
[335260317,1724052632200,-722.8843883,0.00015781,2]
[335260318,1724052632210,-589.9768287,0.00015781,2]
[335260319,1724052632220,-2591.59066799,0.0001588,2]
[335260320,1724052632520,-408.40933201,0.0001588,2]
[335260321,1724052632538,-340.281395,0.0001589,2]
[335260322,1724052632554,-266.81078919,0.000159,2]
[335260323,1724052632569,-997.90440076,0.00015999,2]
[335260324,1724052632581,-247.98372407,0.00016,2]
[335260325,1724052632592,-3000.0,0.00016,2]
[335260326,1724052632603,-334.35239263,0.00016,2]
[335260559,1724052640199,-175.22733991,0.00015999,2]
[335260560,1724052640210,-500.0,0.00015999,2]
[335260561,1724052640220,-367.49084208,0.00015999,2]
[335260562,1724052640230,-48.5936171,0.00015999,2]
[335260878,1724052643096,-103.54003975,0.00015999,2]
[335260880,1724052643106,-500.0,0.00015999,2]
[335260882,1724052643115,-500.0,0.00015999,2]
[335260884,1724052643125,-500.0,0.00015999,2]
[335260887,1724052643135,-500.0,0.00015999,2]
[335260889,1724052643144,-21770.74864614,0.00016,2]
[335261133,1724052645970,-342.2954975,0.00016,2]
[335261166,1724052762645,176.633082,0.00014247,2]
[335261168,1724053005429,9117.91,0.00015,2]
[335261173,1724053628342,-244.80098449,0.0001577,2]
[335261175,1724053744143,178.102241,0.00014247,2]
[335261204,1724053831993,-1004.25000015,0.00015888,2]
[335261295,1724053838296,-995.74999985,0.00015888,2]
[335261297,1724053838307,-323.267325,0.0001589,2]
[335261299,1724053838317,-1174.81424948,0.0001591,2]
[335261301,1724053838327,-171.83717803,0.00015987,2]
[335261303,1724053838337,-384.77917649,0.00015987,2]
[335261305,1724053838347,-500.0,0.00015987,2]
[335261307,1724053838359,-500.0,0.00015987,2]
[335261310,1724053838370,-500.0,0.00015987,2]
[335261312,1724053838381,-500.0,0.00015987,2]
[335261314,1724053838391,-500.0,0.00015987,2]
[335261316,1724053838401,-530.03836053,0.00015987,2]
[335261318,1724053838412,-500.0,0.00015987,2]
[335261320,1724053838421,-21505.13253069,0.00015988,2]
[335261440,1724053840411,-1065.5658909,0.00015988,2]
[335261463,1724053843095,-2443.84952322,0.00015988,2]
[335261480,1724053924467,5527.354677,0.00014245,2]
[335261481,1724053991969,2344.33448605,0.00013971,2]
[335261482,1724054041728,1730.95077047,0.00013971,2]
[335261908,1724054663771,549.53,0.00010959,2]
[335261954,1724054737379,216.54138344,0.00010959,2]
[335261982,1724054825069,10000.0,0.00014,2]
[335261983,1724054831175,-169.197128,0.00014247,2]
[335261984,1724054831196,-65.62098596,0.00015547,2]
[335261985,1724054835780,10000.0,0.00014,2]
[335261986,1724054846828,7113.24544221,0.000165,10]
[335261987,1724054870911,10000.0,0.00014,2]
[335261988,1724054976690,5142.878,0.00014,2]
[335261989,1724054991815,4326.26764659,0.00014,2]
[335261995,1724055011883,1000.0,0.0002,59]
[335262022,1724055032192,-195.7153522,0.00014247,2]
[335262023,1724055032204,-332.823978,0.00014777,2]
[335262024,1724055032215,-953.38755458,0.00015493,2]
[335262025,1724055032226,-294.156627,0.00015507,2]
[335262026,1724055032237,-166.741771,0.00015507,2]
[335262027,1724055032246,-168.929445,0.00015507,2]
[335262028,1724055032255,-300.0,0.00015547,2]
[335262029,1724055032265,-5244.78933856,0.00015747,2]
[335262030,1724055032275,-5328.69624806,0.00015752,2]
[335262031,1724055032287,-2997.42316553,0.00015877,2]
[335262032,1724055032297,-2000.0,0.00015888,2]
[335262033,1724055032306,-307.103958,0.0001589,2]
[335262034,1724055032316,-939.85139956,0.00015896,2]
[335262035,1724055032325,-408.9517048,0.000159,2]
[335262036,1724055032336,-10013.4736377,0.0001595,2]
[335262037,1724055032345,-997.90440076,0.00015977,2]
[335262038,1724055032355,-500.0,0.00015977,2]
[335262039,1724055032365,-500.0,0.00015977,2]
[335262040,1724055032529,-269.34542354,0.00015977,2]
[335262041,1724055032538,-500.0,0.00015977,2]
[335262042,1724055032548,-500.0,0.00015977,2]
[335262043,1724055032557,-500.0,0.00015977,2]
[335262044,1724055032568,-471.02685237,0.00015977,2]
[335262045,1724055032578,-341.0152929,0.00015977,2]
[335262046,1724055032587,-9415.56370746,0.00015978,2]
[335262067,1724055038237,-18554.16222214,0.00015978,2]
[335262069,1724055038247,-9917.00149293,0.00015988,2]
[335262072,1724055038259,-4254.58746965,0.00015988,2]
[335262074,1724055038271,-60191.88387916,0.00015988,2]
[335262077,1724055038291,-8350.42207405,0.00015988,2]
[335262083,1724055038343,-456.40134156,0.00015988,2]
[335262085,1724055038353,-194.9049764,0.00015996,2]
[335262092,1724055039101,4713.18767291,0.00014,2]
[335262096,1724055040550,-4558.42465261,0.00015996,2]
[335262097,1724055040560,-1096.49,0.00016,2]
[335262098,1724055040571,-3000.0,0.00016,2]
[335262099,1724055040580,-408.9517048,0.00016,2]
[335262100,1724055040590,-1315.20685923,0.00016,5]
[335262101,1724055040601,-4000.0,0.00016,16]
[335262102,1724055040611,-939.85139956,0.00016007,2]
[335262103,1724055040621,-1414.0,0.00016007,2]
[335262104,1724055040630,-4166.0,0.00016007,2]
[335262105,1724055040639,-4186.221,0.00016007,2]
[335262106,1724055040649,-5371.768588,0.0001601,2]
[335262107,1724055040658,-574.18002641,0.0001602,2]
[335262108,1724055040668,-574.18002641,0.0001602,2]
[335262109,1724055040677,-600.0,0.00016044,2]
[335262110,1724055040686,-336.82525701,0.00016045,2]
[335262111,1724055040695,-19480.78179097,0.00016086,2]
[335262112,1724055040715,-8488.94413863,0.00016086,2]
[335262113,1724055040727,-165.964,0.00016096,2]
[335262114,1724055040738,-239.491,0.00016096,2]
[335262115,1724055040748,-245.501,0.00016096,2]
[335262116,1724055040758,-250.0,0.00016096,2]
[335262117,1724055040768,-299.016,0.00016096,2]
[335262118,1724055040780,-150.0,0.00016096,2]
[335262119,1724055040790,-521.0,0.00016096,2]
[335262120,1724055040800,-939.85139956,0.00016117,2]
[335262121,1724055040809,-408.9517048,0.000162,2]
[335262122,1724055040818,-301.4598,0.000162,2]
[335262123,1724055040827,-600.0,0.00016211,2]
[335262124,1724055040836,-939.85139956,0.00016228,2]
[335262125,1724055040845,-166.741771,0.00016282,2]
[335262126,1724055040855,-408.9517048,0.000163,2]
[335262127,1724055040865,-18140.81648285,0.00016328,2]
[335262128,1724055040874,-2227.50734193,0.00016338,2]
[335262129,1724055040884,-939.85139956,0.00016338,2]
[335262130,1724055040894,-20624.8139619,0.00016338,2]
[335262131,1724055040903,-3389.71520542,0.00016368,2]
[335262132,1724055040915,-1885.96912301,0.00016368,2]
[335262164,1724055043463,-22312.66013152,0.00016368,2]
[335262241,1724055051576,415.27494609,0.00014,2]
[335262242,1724055059574,273.53393435,0.00014,2]
[335262243,1724055105170,218.89010163,0.00014,2]
[335262244,1724055121409,358.97187806,0.00014,2]
[335262245,1724055157108,3881.78944808,0.00014,2]
[335262246,1724055159518,1671.09905836,0.00014,2]
[335262247,1724055160011,28221.58144253,0.00013971,2]
[335262249,1724055209627,301.53815771,0.00013971,2]
[335262250,1724055212474,269.85836695,0.00013971,2]
[335262251,1724055214505,301.8248988,0.00013971,3]
[335262252,1724055227075,802.6743361,0.00013971,2]
[335262253,1724055229458,154.86511302,0.00013971,2]
[335262254,1724055233211,155.1301764,0.00013971,2]
[335262255,1724055238396,422.31766157,0.00013971,2]
[335262256,1724055240986,811.38667937,0.00013971,2]
[335262257,1724055242929,413.48972324,0.00013971,2]
[335262258,1724055245728,933.80144992,0.00013971,2]
[335262259,1724055246328,5000.0,0.00014,2]
[335262260,1724055249846,154.92377471,0.00013971,2]
[335262261,1724055249927,288.15834108,0.00013971,2]
[335262262,1724055250537,194.89770875,0.00013971,2]
[335262263,1724055253673,1500.0,0.00013971,2]
[335262264,1724055256309,9625.43408875,0.00013971,2]
[335262265,1724055258567,336.51520876,0.00013971,2]
[335262266,1724055259348,1431.69331509,0.00013971,2]
[335262267,1724055259621,728.49952178,0.00013971,2]
[335262268,1724055263463,407.75608535,0.00013971,2]
[335262269,1724055268117,1612.83245615,0.00013971,2]
[335262270,1724055277594,158.03133886,0.00013971,2]
[335262271,1724055279128,2142.00029932,0.00013971,2]
[335262272,1724055287446,157.03390899,0.00013971,2]
[335262273,1724055288511,2886.75,0.00014,2]
[335262274,1724055291585,310.37540345,0.00013971,2]
[335262275,1724055309853,155.01555419,0.00013971,2]
[335262276,1724055314651,424.41093106,0.00013971,2]
[335262277,1724055326758,281.04483738,0.00013971,2]
[335262278,1724055400910,240.47582342,0.00013971,2]
[335262279,1724055407541,1671.44250935,0.00013971,2]
[335262281,1724055426699,934.75500371,0.00013971,2]
[335262282,1724055442987,376.11562994,0.00013971,2]
[335262283,1724055457977,154.93780858,0.00013971,2]
[335262284,1724055492460,155.0866377,0.00013971,2]
[335262285,1724055508149,301.99726166,0.00013971,2]
[335262286,1724055512565,1671.44250935,0.00013971,2]
[335262287,1724055558783,154.69833824,0.00013971,2]
[335262288,1724055613567,1671.44250935,0.00013971,2]
[335262290,1724055652422,422.89281521,0.00013971,2]
[335262292,1724055675785,154.80647338,0.00013971,2]
[335262293,1724055722576,1671.44250935,0.00013971,2]
[335262296,1724055820582,1671.44250935,0.00013971,2]
[335262298,1724055910591,315.22335371,0.00013971,2]
[335262667,1724056238628,-160.737271,0.00014247,2]
[335262669,1724056238638,-168.676189,0.00014843,2]
[335262671,1724056238647,-1505.9596122,0.00014958,2]
[335262673,1724056238657,-166.411989,0.00015103,2]
[335262675,1724056238668,-167.1074846,0.00015197,2]
[335262677,1724056238678,-309.180298,0.0001589,2]
[335262679,1724056238687,-266.81078919,0.000159,2]
[335262681,1724056238697,-2622.7452699,0.00015989,2]
[335262683,1724056238706,-300.0,0.00015999,2]
[335262685,1724056238717,-3000.0,0.00016,2]
[335262688,1724056238727,-12872.60792635,0.00016,2]
[335262690,1724056238738,-600.0,0.00016044,2]
[335262692,1724056238749,-5328.69624806,0.00016047,2]
[335262694,1724056238759,-521.0,0.00016089,2]
[335262696,1724056238772,-1414.0,0.00016089,2]
[335262699,1724056238784,-4166.0,0.00016089,2]
[335262701,1724056238794,-4186.221,0.00016089,2]
[335262703,1724056238805,-1110.9613583,0.00016122,2]
[335262705,1724056238815,-600.0,0.00016211,2]
[335262707,1724056238825,-184.82916245,0.00016267,2]
[335262709,1724056238836,-188.54179648,0.00016327,2]
[335262711,1724056238847,-500.0,0.00016327,2]
[335262714,1724056238857,-500.0,0.00016327,2]
[335262716,1724056238869,-500.0,0.00016327,2]
[335262718,1724056238879,-318.42950169,0.00016327,2]
[335262720,1724056238890,-500.0,0.00016327,2]
[335262722,1724056238901,-25347.0854523,0.00016328,2]
[335262724,1724056238911,-2000.0,0.00016328,2]
[335262726,1724056238923,-2004.75660771,0.00016338,2]
[335262728,1724056238934,-184.82916245,0.00016338,2]
[335262730,1724056238943,-74800.9938392,0.00016338,2]
[335262736,1724056238990,-532.61899869,0.00016338,2]
[335262781,1724056240797,-150.0,0.00016089,2]
[335262782,1724056240806,-12320.16179114,0.00016338,2]
[335262793,1724056245766,185.69,0.00010959,2]
[335262809,1724056246758,-500.0,0.00015999,2]
[335262810,1724056246768,-236.87080341,0.00015999,2]
[335262811,1724056252931,351.2015972,0.00014,2]
[335262812,1724056256313,186.16,0.00010959,2]
[335262813,1724056266818,155.13,0.00010959,2]
[335262815,1724056277527,775.7,0.00010959,2]
[335262816,1724056303178,20350.82660519,0.00013971,2]
[335262843,1724057225151,-243.80269744,0.00011841,2]
[335262883,1724057432596,-794.88355759,0.00010957,2]
[335262884,1724057432608,-3826.42585301,0.00010957,2]
[335262916,1724057438580,-861.15650857,0.00010957,2]
[335262926,1724057438689,-30504.39279113,0.00010957,2]
[335262927,1724057438699,-300.0,0.00011408,2]
[335262928,1724057438708,-319.40795197,0.00011841,2]
[335262929,1724057438717,-226.80603595,0.00011841,2]
[335262930,1724057438726,-15659.52903295,0.00011841,2]
[335262931,1724057438735,-1341.6134714,0.00011847,2]
[335262932,1724057438744,-6502.43383444,0.00011999,2]
[335262933,1724057438752,-11814.69651898,0.0001212,2]
[335262934,1724057438762,-1500.0,0.00012163,2]
[335262935,1724057438771,-167.107483,0.00012382,2]
[335262936,1724057438779,-1618.59802424,0.00012516,2]
[335262937,1724057438789,-2166.25640825,0.00012516,2]
[335262938,1724057438797,-420.0,0.00012549,2]
[335262939,1724057438806,-2492.29654361,0.00012629,2]
[335262940,1724057438815,-2128.04084944,0.00012629,2]
[335262941,1724057438824,-8858.0495205,0.000129,2]
[335262942,1724057438833,-2294.90211111,0.000129,2]
[335262943,1724057438842,-590.54272823,0.00012934,2]
[335262944,1724057438851,-154.79103211,0.00012934,2]
[335262945,1724057438860,-236.36064694,0.00012971,2]
[335262946,1724057438869,-154.69833824,0.00012971,2]
[335262947,1724057438879,-212.62782704,0.00012971,2]
[335262948,1724057438888,-156.98597021,0.00012985,2]
[335262949,1724057438897,-544.95274164,0.00012985,2]
[335262950,1724057438906,-190.07446844,0.00012985,2]
[335262951,1724057438916,-522.96413212,0.00012989,2]
[335262952,1724057438925,-29048.60110399,0.00013,7]
[335262953,1724057438935,-151.0,0.00013,2]
[335262954,1724057438944,-810.98237385,0.00013051,2]
[335262955,1724057438953,-461.66058202,0.00013477,2]
[335262956,1724057438961,-8858.04952048,0.00013673,2]
[335262957,1724057438970,-151.0,0.00013688,2]
[335262958,1724057438979,-151.0,0.00013689,2]
[335262959,1724057438988,-160.05568082,0.00013697,2]
[335262960,1724057438997,-240.35898756,0.00013698,2]
[335262961,1724057439006,-500.0,0.00013698,2]
[335262962,1724057439017,-500.0,0.00013698,2]
[335262963,1724057439026,-504.81343685,0.00013698,2]
[335262964,1724057439035,-500.0,0.00013698,2]
[335262965,1724057439045,-500.0,0.00013698,2]
[335262966,1724057439053,-500.0,0.00013698,2]
[335262967,1724057439063,-200.07650857,0.00013698,2]
[335262968,1724057439072,-200.0,0.00013698,2]
[335262969,1724057439082,-500.0,0.00013698,2]
[335262970,1724057439091,-500.0,0.00013698,2]
[335262971,1724057439100,-260.0,0.00013698,2]
[335262972,1724057439109,-462.55874543,0.00013698,2]
[335262973,1724057439120,-500.0,0.00013698,2]
[335262974,1724057439129,-500.0,0.00013698,2]
[335262975,1724057439138,-500.0,0.00013698,2]
[335262976,1724057439148,-500.0,0.00013698,2]
[335262977,1724057439157,-500.0,0.00013698,2]
[335262978,1724057439166,-500.0,0.00013698,2]
[335262979,1724057439175,-159.32245334,0.00013698,2]
[335262980,1724057439185,-500.0,0.00013698,2]
[335262981,1724057439194,-302.0163678,0.00013698,2]
[335262982,1724057439204,-500.0,0.00013698,2]
[335262983,1724057439213,-500.0,0.00013698,2]
[335262984,1724057439222,-500.0,0.00013698,2]
[335262985,1724057439232,-500.0,0.00013698,2]
[335262986,1724057439241,-500.0,0.00013698,2]
[335262987,1724057439250,-500.0,0.00013698,2]
[335262988,1724057439259,-500.0,0.00013698,2]
[335262989,1724057439269,-500.0,0.00013698,2]
[335262990,1724057439278,-371.75106598,0.00013698,2]
[335262991,1724057439288,-325.72990474,0.00013698,2]
[335262992,1724057439297,-500.0,0.00013698,2]
[335262993,1724057439308,-248.81229758,0.00013698,2]
[335262994,1724057439319,-500.0,0.00013698,2]
[335262995,1724057439328,-500.0,0.00013698,2]
[335262996,1724057439337,-500.0,0.00013698,2]
[335262997,1724057439346,-500.0,0.00013698,2]
[335262998,1724057439357,-500.0,0.00013698,2]
[335262999,1724057439367,-545.22543901,0.00013698,2]
[335263000,1724057439376,-178.886012,0.00013699,2]
[335263001,1724057439385,-178.886012,0.00013699,2]
[335263002,1724057439397,-151.0,0.00013699,2]
[335263003,1724057439406,-151.0,0.00013699,2]
[335263004,1724057439416,-151.0,0.00013699,2]
[335263005,1724057439425,-3000.0,0.00013699,2]
[335263006,1724057439434,-920.006189,0.00013699,2]
[335263007,1724057439445,-920.006189,0.00013699,2]
[335263008,1724057439454,-920.006189,0.00013699,2]
[335263009,1724057439463,-35359.4473214,0.00013699,2]
[335263010,1724057439473,-677.925555,0.00013699,2]
[335263011,1724057439483,-677.925555,0.00013699,2]
[335263012,1724057439493,-677.925555,0.00013699,2]
[335263013,1724057439622,-677.925555,0.00013699,2]
[335263014,1724057439632,-1185.556722,0.00013699,2]
[335263015,1724057439642,-1185.556722,0.00013699,2]
[335263016,1724057439653,-1185.556722,0.00013699,2]
[335263017,1724057439662,-1185.556722,0.00013699,2]
[335263018,1724057439672,-151.0,0.00013699,2]
[335263019,1724057439682,-1185.556722,0.00013699,2]
[335263020,1724057439692,-1185.556722,0.00013699,2]
[335263021,1724057439702,-977.465904,0.00013699,2]
[335263022,1724057439712,-977.465904,0.00013699,2]
[335263023,1724057439722,-151.0,0.00013699,2]
[335263024,1724057439732,-151.0,0.00013699,2]
[335263025,1724057439741,-151.0,0.00013699,2]
[335263026,1724057439751,-1601.505462,0.00013699,2]
[335263027,1724057439761,-1601.505462,0.00013699,2]
[335263028,1724057439773,-151.0,0.00013699,2]
[335263029,1724057439784,-151.0,0.00013699,2]
[335263030,1724057439793,-151.0,0.00013699,2]
[335263031,1724057439803,-151.0,0.00013699,2]
[335263032,1724057439812,-396.752583,0.00013699,2]
[335263033,1724057439822,-396.752583,0.00013699,2]
[335263034,1724057439831,-1556.225728,0.00013699,2]
[335263035,1724057439840,-500.0,0.00013699,2]
[335263036,1724057439849,-153.59659108,0.00013699,2]
[335263037,1724057439859,-500.0,0.00013699,2]
[335263038,1724057439869,-500.0,0.00013699,2]
[335263039,1724057439879,-500.0,0.00013699,2]
[335263040,1724057439888,-500.0,0.00013699,2]
[335263041,1724057439898,-500.0,0.00013699,2]
[335263042,1724057439907,-500.0,0.00013699,2]
[335263043,1724057439917,-500.0,0.00013699,2]
[335263044,1724057439926,-500.0,0.00013699,2]
[335263045,1724057439936,-500.0,0.00013699,2]
[335263046,1724057439945,-500.0,0.00013699,2]
[335263047,1724057439955,-351.02282731,0.00013699,2]
[335263048,1724057439965,-162.50509973,0.00013699,2]
[335263049,1724057439975,-500.0,0.00013699,2]
[335263050,1724057439985,-500.0,0.00013699,2]
[335263051,1724057439994,-500.0,0.00013699,2]
[335263052,1724057440003,-500.0,0.00013699,2]
[335263053,1724057440014,-500.0,0.00013699,2]
[335263054,1724057440026,-525.8951016,0.00013699,2]
[335263055,1724057440035,-500.0,0.00013699,2]
[335263056,1724057440045,-500.0,0.00013699,2]
[335263057,1724057440055,-500.0,0.00013699,2]
[335263058,1724057440064,-500.0,0.00013699,2]
[335263059,1724057440074,-500.0,0.00013699,2]
[335263060,1724057440083,-500.0,0.00013699,2]
[335263061,1724057440093,-500.0,0.00013699,2]
[335263062,1724057440102,-500.0,0.00013699,2]
[335263063,1724057440111,-500.0,0.00013699,2]
[335263064,1724057440121,-500.0,0.00013699,2]
[335263065,1724057440131,-500.0,0.00013699,2]
[335263066,1724057440140,-500.0,0.00013699,2]
[335263067,1724057440150,-500.0,0.00013699,2]
[335263068,1724057440160,-500.0,0.00013699,2]
[335263069,1724057440169,-500.0,0.00013699,2]
[335263070,1724057440179,-500.0,0.00013699,2]
[335263071,1724057440189,-500.0,0.00013699,2]
[335263072,1724057440199,-500.0,0.00013699,2]
[335263073,1724057440208,-500.0,0.00013699,2]
[335263074,1724057440217,-500.0,0.00013699,2]
[335263075,1724057440226,-500.0,0.00013699,2]
[335263076,1724057440236,-500.0,0.00013699,2]
[335263077,1724057440246,-500.0,0.00013699,2]
[335263078,1724057440255,-500.0,0.00013699,2]
[335263079,1724057440265,-500.0,0.00013699,2]
[335263080,1724057440274,-500.0,0.00013699,2]
[335263081,1724057440284,-500.0,0.00013699,2]
[335263082,1724057440294,-500.0,0.00013699,2]
[335263083,1724057440304,-500.0,0.00013699,2]
[335263084,1724057440314,-500.0,0.00013699,2]
[335263085,1724057440325,-500.0,0.00013699,2]
[335263086,1724057440335,-500.0,0.00013699,2]
[335263087,1724057440344,-500.0,0.00013699,2]
[335263088,1724057440354,-500.0,0.00013699,2]
[335263089,1724057440364,-500.0,0.00013699,2]
[335263090,1724057440374,-500.0,0.00013699,2]
[335263091,1724057440384,-500.0,0.00013699,2]
[335263092,1724057440395,-500.0,0.00013699,2]
[335263093,1724057440405,-500.0,0.00013699,2]
[335263094,1724057440415,-500.0,0.00013699,2]
[335263095,1724057440425,-500.0,0.00013699,2]
[335263096,1724057440434,-500.0,0.00013699,2]
[335263097,1724057440443,-500.0,0.00013699,2]
[335263098,1724057440453,-500.0,0.00013699,2]
[335263099,1724057440464,-500.0,0.00013699,2]
[335263100,1724057440474,-500.0,0.00013699,2]
[335263101,1724057440486,-500.0,0.00013699,2]
[335263102,1724057440496,-500.0,0.00013699,2]
[335263103,1724057440506,-500.0,0.00013699,2]
[335263104,1724057440516,-500.0,0.00013699,2]
[335263105,1724057440525,-500.0,0.00013699,2]
[335263107,1724057440535,-500.0,0.00013699,2]
[335263109,1724057440546,-500.0,0.00013699,2]
[335263111,1724057440556,-500.0,0.00013699,2]
[335263112,1724057440566,-500.0,0.00013699,2]
[335263113,1724057440575,-551.79020326,0.00013699,2]
[335263114,1724057440586,-500.0,0.00013699,2]
[335263115,1724057440596,-500.0,0.00013699,2]
[335263117,1724057440612,-500.0,0.00013699,2]
[335263119,1724057440628,-500.0,0.00013699,2]
[335263120,1724057440643,-500.0,0.00013699,2]